[Event "Int SVK-ch Open 2020"]
[Site "Drienica"]
[Date "2020.08.07"]
[Round "1.6"]
[White "Juhar Roman"]
[Black "Stanko Ivan"]
[Result "1/2-1/2"]
[ECO "D53"]
[WhiteElo "2225"]
[BlackElo "1848"]
[Annotator "RC"]
[PlyCount "201"]
[EventDate "2020.08.07"]
[EventType "swiss"]
[EventCountry "SVK"]
[SourceTitle "playchess.com"]
[Source "ChessBase"]
[SourceQuality "1"]
[TimeControl "40/5400+30:1800+30"]

1. d4 {[%emt 0:00:00]} Nf6 {[%emt 0:00:54]} 2. c4 {[%emt 0:00:01]} Nc6 {[%emt 0:00:33]} 3. Nc3 {[%emt 0:00:22]} e6 {[%emt 0:01:09]} 4. a3 {[%emt 0:00:58]} d5 {[%emt 0:01:43]} 5. Bg5 {[%emt 0:00:23]} Be7 {[%emt 0:00:18]} 6. e3 {[%emt 0:00:11]} O-O {[%emt 0:01:28]} 7. Nf3 {[%emt 0:00:12]} b6 {[%emt 0:05:06]} 8. Rc1 {[%emt 0:01:34]} Na5 {[%emt 0:00:42]} 9. cxd5 {[%emt 0:01:50]} exd5 {[%emt 0:00:16]} 10. Ne5 {[%emt 0:00:25]} c5 {[%emt 0:02:02]} 11. Bb5 {[%emt 0:01:40]} Be6 {[%emt 0:06:11]} 12. O-O {[%emt 0:01:14]} a6 {[%emt 0:03:18]} 13. Nc6 {[%emt 0:07:38]} Nxc6 {[%emt 0:01:24]} 14. Bxc6 {[%emt 0:00:05]} Rc8 {[%emt 0:01:25]} 15. Bb7 {[%emt 0:00:18]} Rc7 {[%emt 0:00:02]} 16. Bxa6 {[%emt 0:00:16]} Ra7 {[%emt 0:02:33]} 17. Bb5 {[%emt 0:04:15]} c4 {[%emt 0:07:14]} 18. Qf3 {[%emt 0:01:10]} h6 {[%emt 0:08:30]} 19. Bxf6 {[%emt 0:00:23]} Bxf6 {[%emt 0:00:10]} 20. Bc6 {[%emt 0:00:14]} Ra5 {[%emt 0:01:04]} 21. Rfd1 {[%emt 0:09:51]} Qd6 {[%emt 0:07:24]} 22. Bb5 {[%emt 0:00:33]} Rd8 {[%emt 0:02:22]} 23. e4 {[%emt 0:00:41]} Bg5 {[%emt 0:00:28]} 24. Rc2 {[%emt 0:05:50]} Rxb5 {[%emt 0:05:08]} 25. Nxb5 {[%emt 0:00:33]} Qd7 {[%emt 0:00:04]} 26. Nc3 {[%emt 0:01:37]} Bg4 {[%emt 0:00:08]} 27. Qg3 {[%emt 0:00:08]} Bxd1 {[%emt 0:00:28]} 28. Nxd1 {[%emt 0:00:29]} Qa4 {[%emt 0:01:04]} 29. Qc3 {[%emt 0:01:00]} dxe4 {[%emt 0:00:51]} 30. Ne3 {[%emt 0:10:49]} b5 {[%emt 0:00:23]} 31. g3 {[%emt 0:00:20]} Bf6 {[%emt 0:03:39]} 32. Rd2 {[%emt 0:00:18]} Qa7 {[%emt 0:00:29]} 33. Qb4 {[%emt 0:00:33]} Rxd4 {[%emt 0:00:47]} 34. Rxd4 {[%emt 0:00:13]} Bxd4 {[%emt 0:00:07]} 35. Qxb5 {[%emt 0:00:05]} Bxe3 {[%emt 0:00:12]} 36. Qe8+ {[%emt 0:00:05]} Kh7 {[%emt 0:01:14]} 37. Qxe4+ {[%emt 0:00:06]} Kg8 {[%emt 0:00:28]} 38. Qe8+ {[%emt 0:01:41]} Kh7 {[%emt 0:00:20]} 39. Qxe3 {[%emt 0:00:06]} Qb7 {[%emt 0:00:34]} 40. Qe2 {[%emt 0:01:11]} Qd5 {[%emt 0:03:28]} 41. h3 {[%emt 0:33:59]} g6 {[%emt 0:30:14]} 42. Kh2 {[%emt 0:00:47]} Qb5 {[%emt 0:00:16]} 43. Qc2 {[%emt 0:03:32]} Kg8 {[%emt 0:04:44]} 44. Kg1 {[%emt 0:01:15]} Kf8 {[%emt 0:02:21]} 45. Qc3 {[%emt 0:00:33]} Kg8 {[%emt 0:00:11]} 46. Kf1 {[%emt 0:00:21]} Qd5 {[%emt 0:00:28]} 47. Ke2 {[%emt 0:00:49]} Qe4+ {[%emt 0:00:50]} 48. Kd2 {[%emt 0:00:33]} Qf5 {[%emt 0:00:11]} 49. Ke3 {[%emt 0:00:55]} Qc5+ {[%emt 0:01:30]} 50. Qd4 {[%emt 0:00:19]} Qg5+ {[%emt 0:00:17]} 51. Ke2 {[%emt 0:02:42]} Qb5 {[%emt 0:00:48]} 52. Kd2 {[%emt 0:00:21]} Qa5+ {[%emt 0:02:07]} 53. Kc2 {[%emt 0:02:05]} Qa4+ {[%emt 0:00:49]} 54. Kb1 {[%emt 0:00:23]} Qb3 {[%emt 0:00:36]} 55. Qc3 {[%emt 0:02:11]} Qd1+ {[%emt 0:01:46]} 56. Ka2 {[%emt 0:00:05]} Qf1 {[%emt 0:00:11]} 57. g4 {[%emt 0:00:49]} Qe2 {[%emt 0:00:36]} 58. f4 {[%emt 0:00:14]} Qe4 {[%emt 0:05:09]} 59. Qd2 {[%emt 0:02:49]} h5 {[%emt 0:02:39]} 60. gxh5 {[%emt 0:00:51]} gxh5 {[%emt 0:00:05]} 61. Qd8+ {[%emt 0:00:59]} Kh7 {[%emt 0:00:30]} 62. Qg5 {[%emt 0:00:39]} Qf3 {[%emt 0:01:17]} 63. Qf5+ {[%emt 0:00:51]} Kg7 {[%emt 0:00:07]} 64. Qe5+ {[%emt 0:00:39]} Kh7 {[%emt 0:00:18]} 65. Qf5+ {[%emt 0:03:51]} Kg7 {[%emt 0:00:16]} 66. h4 {[%emt 0:00:19]} Qb3+ {[%emt 0:00:51]} 67. Ka1 {[%emt 0:00:07]} Qd1+ {[%emt 0:00:44]} 68. Qb1 {[%emt 0:00:07]} Qg4 {[%emt 0:03:48]} 69. a4 {[%emt 0:03:22]} Qxf4 {[%emt 0:00:57]} 70. a5 {[%emt 0:01:39]} Qd4 {[%emt 0:00:36]} 71. Qe1 {[%emt 0:00:49]} Qc5 {[%emt 0:02:06]} 72. Qg3+ {[%emt 0:00:18]} Kf8 {[%emt 0:00:46]} 73. Qg5 {[%emt 0:00:34]} Qd4 {[%emt 0:00:50]} 74. Qh6+ {[%emt 0:01:40]} Ke8 {[%emt 0:00:18]} 75. Qxh5 {[%emt 0:01:30]} c3 {[%emt 0:00:15]} 76. bxc3 {[%emt 0:00:48]} Qxc3+ {[%emt 0:00:11]} 77. Kb1 {[%emt 0:00:04]} Qb3+ {[%emt 0:00:11]} 78. Kc1 {[%emt 0:00:07]} Qc3+ {[%emt 0:00:05]} 79. Kd1 {[%emt 0:00:06]} Qd3+ {[%emt 0:00:06]} 80. Ke1 {[%emt 0:00:42]} Qc3+ {[%emt 0:00:26]} 81. Kf1 {[%emt 0:00:00]} Qc1+ {[%emt 0:00:33]} 82. Kf2 {[%emt 0:00:07]} Qf4+ {[%emt 0:00:11]} 83. Kg2 {[%emt 0:00:42]} Qe4+ {[%emt 0:00:32]} 84. Kg3 {[%emt 0:00:16]} Qe1+ {[%emt 0:00:28]} 85. Kf4 {[%emt 0:01:42]} Qb4+ {[%emt 0:00:21]} 86. Kf3 {[%emt 0:00:52]} Qc3+ {[%emt 0:00:44]} 87. Kg4 {[%emt 0:02:08]} Qb4+ {[%emt 0:00:41]} 88. Kg3 {[%emt 0:00:51]} Qe1+ {[%emt 0:00:44]} 89. Kg2 {[%emt 0:00:30]} Qd2+ {[%emt 0:01:05]} 90. Kf1 {[%emt 0:00:21]} Qc1+ {[%emt 0:01:19]} 91. Kf2 {[%emt 0:01:23]} Qf4+ {[%emt 0:00:11]} 92. Ke1 {[%emt 0:00:00]} Qb4+ {[%emt 0:00:44]} 93. Kd1 {[%emt 0:00:30]} Qd4+ {[%emt 0:01:01]} 94. Kc2 {[%emt 0:00:50]} Qc4+ {[%emt 0:00:09]} 95. Kd2 {[%emt 0:00:33]} Qd4+ {[%emt 0:00:14]} 96. Ke2 {[%emt 0:00:14]} Qe4+ {[%emt 0:00:38]} 97. Kf2 {[%emt 0:00:17]} Qf4+ {[%emt 0:01:42]} 98. Qf3 {[%emt 0:00:00]} Qxh4+ {[%emt 0:00:26]} 99. Qg3 {[%emt 0:00:00]} Qxg3+ {[%emt 0:00:14]} 100. Kxg3 {[%emt 0:00:00]} Kd7 {[%emt 0:00:07]} 101. Kf4 {[%emt 0:00:00]} 1/2-1/2

[Event "Int SVK-ch Open 2020"]
[Site "Drienica"]
[Date "2020.08.07"]
[Round "1.6"]
[White "Janik, Marek Tobias"]
[Black "Bednar, Jan"]
[Result "1/2-1/2"]
[ECO "A38"]
[WhiteElo "1600"]
[BlackElo "2018"]
[Annotator "ChessBase"]
[PlyCount "59"]
[EventDate "2020.08.07"]
[EventType "swiss"]
[EventCountry "SVK"]
[SourceTitle "playchess.com"]
[Source "ChessBase"]
[SourceQuality "1"]
[TimeControl "40/5400+30:1800+30"]

1. c4 {[%emt 0:00:00]} c5 {[%emt 0:00:10]} 2. g3 {[%emt 0:00:00]} Nc6 {[%emt 0:00:25]} 3. Bg2 {[%emt 0:00:00]} g6 {[%emt 0:00:06]} 4. Nc3 {[%emt 0:00:07]} Bg7 {[%emt 0:00:06]} 5. Nf3 {[%emt 0:01:28]} Nf6 {[%emt 0:00:26]} 6. d3 {[%emt 0:01:28]} O-O {[%emt 0:02:11]} 7. O-O {[%emt 0:00:17]} d5 {[%emt 0:01:02]} 8. cxd5 {[%emt 0:04:51]} Nxd5 {[%emt 0:00:06]} 9. Bd2 {[%emt 0:03:24]} b6 {[%emt 0:06:32]} 10. Nxd5 {[%emt 0:09:07]} Qxd5 {[%emt 0:06:24]} 11. Bc3 {[%emt 0:03:37]} Qd6 {[%emt 0:01:59]} 12. Bxg7 {[%emt 0:14:22]} Kxg7 {[%emt 0:01:40]} 13. d4 {[%emt 0:18:59]} cxd4 {[%emt 0:17:11]} 14. Nxd4 {[%emt 0:02:22]} Nxd4 {[%emt 0:00:39]} 15. Bxa8 {[%emt 0:01:07]} Ba6 {[%emt 0:02:05]} 16. Bf3 {[%emt 0:07:28]} Nxf3+ {[%emt 0:00:50]} 17. exf3 {[%emt 0:00:33]} Bxf1 {[%emt 0:00:06]} 18. Kxf1 {[%emt 0:08:15]} Rc8 {[%emt 0:01:35]} 19. Qe2 {[%emt 0:13:35]} Rc5 {[%emt 0:07:32]} 20. Rd1 {[%emt 0:01:16]} Qc7 {[%emt 0:05:44]} 21. Rd2 {[%emt 0:00:44]} h5 {[%emt 0:00:18]} 22. Kg2 {[%emt 0:02:40]} b5 {[%emt 0:04:31]} 23. b4 {[%emt 0:00:58]} Rc4 {[%emt 0:00:39]} 24. a3 {[%emt 0:00:08]} a6 {[%emt 0:01:10]} 25. Qe3 {[%emt 0:01:34]} e6 {[%emt 0:23:48]} 26. Rd3 {[%emt 0:01:39]} e5 {[%emt 0:09:35]} 27. Rd5 {[%emt 0:01:41]} Rc3 {[%emt 0:00:22]} 28. Rd3 {[%emt 0:00:10]} Rc1 {[%emt 0:02:07]} 29. Rd5 {[%emt 0:00:58]} Rc3 {[%emt 0:02:24]} 30. Rd3 {[%emt 0:00:04]} 1/2-1/2

[Event "Int SVK-ch Open 2020"]
[Site "Drienica"]
[Date "2020.08.07"]
[Round "1.7"]
[White "Sevcikova, Lucia"]
[Black "Lehocz, Jozsef Jr."]
[Result "1/2-1/2"]
[ECO "B22"]
[WhiteElo "2017"]
[BlackElo "1596"]
[Annotator "ChessBase"]
[PlyCount "85"]
[EventDate "2020.08.07"]
[EventType "swiss"]
[EventCountry "SVK"]
[SourceTitle "playchess.com"]
[Source "ChessBase"]
[SourceQuality "1"]
[TimeControl "40/5400+30:1800+30"]

1. e4 {[%emt 0:00:00]} c5 {[%emt 0:00:00]} 2. c3 {[%emt 0:00:00]} Nf6 {[%emt 0:01:08]} 3. e5 {[%emt 0:00:02]} Nd5 {[%emt 0:00:05]} 4. d4 {[%emt 0:00:07]} cxd4 {[%emt 0:00:20]} 5. cxd4 {[%emt 0:00:06]} d6 {[%emt 0:01:15]} 6. Nf3 {[%emt 0:01:45]} Nc6 {[%emt 0:00:24]} 7. Be2 {[%emt 0:08:06]} Bg4 {[%emt 0:09:54]} 8. O-O {[%emt 0:02:32]} e6 {[%emt 0:02:50]} 9. Re1 {[%emt 0:02:56]} Be7 {[%emt 0:01:26]} 10. Nc3 {[%emt 0:02:05]} Nxc3 {[%emt 0:05:58]} 11. bxc3 {[%emt 0:00:12]} O-O {[%emt 0:00:52]} 12. Bf4 {[%emt 0:04:48]} dxe5 {[%emt 0:01:38]} 13. Nxe5 {[%emt 0:01:01]} Bxe2 {[%emt 0:13:29]} 14. Qxe2 {[%emt 0:00:55]} Nxe5 {[%emt 0:00:43]} 15. Bxe5 {[%emt 0:00:57]} Bd6 {[%emt 0:00:44]} 16. Rab1 {[%emt 0:01:13]} b6 {[%emt 0:01:25]} 17. Qg4 {[%emt 0:03:07]} Bxe5 {[%emt 0:00:29]} 18. Rxe5 {[%emt 0:00:07]} Rc8 {[%emt 0:00:37]} 19. Re3 {[%emt 0:01:26]} Qf6 {[%emt 0:01:00]} 20. Rbe1 {[%emt 0:04:12]} Rfd8 {[%emt 0:01:26]} 21. Rg3 {[%emt 0:01:32]} Rd5 {[%emt 0:04:25]} 22. Qe4 {[%emt 0:07:39]} Qf5 {[%emt 0:01:54]} 23. Qe2 {[%emt 0:04:00]} Ra5 {[%emt 0:02:24]} 24. c4 {[%emt 0:06:26]} Qf4 {[%emt 0:05:38]} 25. Rd1 {[%emt 0:02:26]} Ra4 {[%emt 0:04:51]} 26. Rc3 {[%emt 0:03:22]} b5 {[%emt 0:05:35]} 27. Rf3 {[%emt 0:01:52]} Qd6 {[%emt 0:02:15]} 28. c5 {[%emt 0:04:49]} Qd5 {[%emt 0:00:09]} 29. Qxb5 {[%emt 0:04:04]} Rxd4 {[%emt 0:00:22]} 30. Rf1 {[%emt 0:02:18]} Qxc5 {[%emt 0:18:51]} 31. Qb7 {[%emt 0:00:44]} Qc7 {[%emt 0:00:37]} 32. Rb3 {[%emt 0:02:41]} Rd7 {[%emt 0:00:34]} 33. Qa6 {[%emt 0:01:19]} Rd6 {[%emt 0:00:46]} 34. Qb7 {[%emt 0:01:41]} Rd7 {[%emt 0:00:26]} 35. Qa6 {[%emt 0:00:06]} Rd6 {[%emt 0:01:04]} 36. Qb7 {[%emt 0:00:05]} Rb6 {[%emt 0:00:42]} 37. Rxb6 {[%emt 0:00:50]} axb6 {[%emt 0:00:08]} 38. Qxc7 {[%emt 0:00:04]} Rxc7 {[%emt 0:00:07]} 39. g3 {[%emt 0:00:42]} g6 {[%emt 0:00:17]} 40. Rb1 {[%emt 0:00:37]} Rc6 {[%emt 0:00:03]} 41. Rb5 {[%emt 0:30:32]} Kf8 {[%emt 0:30:41]} 42. a4 {[%emt 0:00:31]} Ke7 {[%emt 0:00:10]} 43. a5 {[%emt 0:00:38]} 1/2-1/2

[Event "Int SVK-ch Open 2020"]
[Site "Drienica"]
[Date "2020.08.07"]
[Round "1.7"]
[White "Bujna Martin"]
[Black "Hros Roman"]
[Result "1/2-1/2"]
[ECO "A60"]
[WhiteElo "1841"]
[BlackElo "2203"]
[Annotator "ChessBase"]
[PlyCount "46"]
[EventDate "2020.08.07"]
[EventType "swiss"]
[EventCountry "SVK"]
[SourceTitle "playchess.com"]
[Source "ChessBase"]
[SourceQuality "1"]
[TimeControl "40/5400+30:1800+30"]

1. d4 {[%emt 0:00:00]} Nf6 {[%emt 0:00:00]} 2. c4 {[%emt 0:00:14]} c5 {[%emt 0:00:00]} 3. d5 {[%emt 0:00:30]} e6 {[%emt 0:00:00]} 4. Nc3 {[%emt 0:01:05]} exd5 {[%emt 0:00:25]} 5. Nxd5 {[%emt 0:01:33]} Nxd5 {[%emt 0:00:32]} 6. Qxd5 {[%emt 0:00:36]} Nc6 {[%emt 0:02:18]} 7. Nf3 {[%emt 0:03:37]} Be7 {[%emt 0:01:09]} 8. e4 {[%emt 0:03:40]} O-O {[%emt 0:04:48]} 9. Be2 {[%emt 0:01:30]} d6 {[%emt 0:06:29]} 10. O-O {[%emt 0:02:06]} Bg4 {[%emt 0:06:07]} 11. h3 {[%emt 0:02:52]} Bxf3 {[%emt 0:00:17]} 12. Bxf3 {[%emt 0:00:11]} Qc7 {[%emt 0:02:14]} 13. Bf4 {[%emt 0:02:31]} Rad8 {[%emt 0:00:14]} 14. Qxc5 {[%emt 0:01:48]} dxc5 {[%emt 0:01:29]} 15. Bxc7 {[%emt 0:00:19]} Rd2 {[%emt 0:02:18]} 16. b3 {[%emt 0:01:43]} Bf6 {[%emt 0:11:04]} 17. e5 {[%emt 0:00:13]} Nxe5 {[%emt 0:03:48]} 18. Bxe5 {[%emt 0:00:11]} Bxe5 {[%emt 0:00:01]} 19. Rad1 {[%emt 0:00:13]} Rfd8 {[%emt 0:05:48]} 20. Rxd2 {[%emt 0:00:32]} Rxd2 {[%emt 0:00:03]} 21. Rd1 {[%emt 0:00:11]} Rxd1+ {[%emt 0:00:21]} 22. Bxd1 {[%emt 0:00:08]} Kf8 {[%emt 0:00:56]} 23. Kf1 {[%emt 0:00:17]} Ke7 {[%emt 0:00:39]} 1/2-1/2

[Event "Int SVK-ch Open 2020"]
[Site "Drienica"]
[Date "2020.08.07"]
[Round "1.8"]
[White "Mrvova Alena"]
[Black "Tomanek Rafael"]
[Result "1-0"]
[ECO "B13"]
[WhiteElo "2188"]
[BlackElo "1835"]
[Annotator "RC"]
[PlyCount "121"]
[EventDate "2020.08.07"]
[EventType "swiss"]
[EventCountry "SVK"]
[SourceTitle "playchess.com"]
[Source "ChessBase"]
[SourceQuality "1"]
[TimeControl "40/5400+30:1800+30"]

1. e4 {[%emt 0:00:00]} c6 {[%emt 0:00:54]} 2. d4 {[%emt 0:00:58]} d5 {[%emt 0:00:12]} 3. exd5 {[%emt 0:00:25]} cxd5 {[%emt 0:00:13]} 4. Nf3 {[%emt 0:00:34]} Nc6 {[%emt 0:00:31]} 5. c3 {[%emt 0:01:07]} Nf6 {[%emt 0:00:57]} 6. Bb5 {[%emt 0:03:45]} Qb6 {[%emt 0:04:14]} 7. Bd3 {[%emt 0:02:27]} Bg4 {[%emt 0:01:04]} 8. O-O {[%emt 0:01:37]} e6 {[%emt 0:00:45]} 9. h3 {[%emt 0:00:48]} Bh5 {[%emt 0:00:43]} 10. Nbd2 {[%emt 0:02:50]} Bd6 {[%emt 0:04:44]} 11. b4 {[%emt 0:02:26]} O-O {[%emt 0:03:16]} 12. a4 {[%emt 0:02:45]} Qc7 {[%emt 0:02:32]} 13. Qb3 {[%emt 0:00:44]} Bg6 {[%emt 0:01:44]} 14. Bxg6 {[%emt 0:01:16]} hxg6 {[%emt 0:00:14]} 15. Ba3 {[%emt 0:01:02]} Rfc8 {[%emt 0:03:44]} 16. Rfe1 {[%emt 0:01:35]} a6 {[%emt 0:04:57]} 17. Rac1 {[%emt 0:01:21]} b5 {[%emt 0:01:42]} 18. a5 {[%emt 0:03:12]} Bf4 {[%emt 0:07:01]} 19. Re2 {[%emt 0:00:54]} Ne7 {[%emt 0:04:59]} 20. Rc2 {[%emt 0:03:32]} Qb7 {[%emt 0:04:38]} 21. Nf1 {[%emt 0:02:37]} Ne4 {[%emt 0:02:30]} 22. Ne1 {[%emt 0:00:59]} Rc6 {[%emt 0:01:44]} 23. Nd3 {[%emt 0:03:06]} Bd6 {[%emt 0:04:48]} 24. Nc5 {[%emt 0:01:21]} Nxc5 {[%emt 0:03:50]} 25. dxc5 {[%emt 0:00:24]} Bf4 {[%emt 0:02:52]} 26. g3 {[%emt 0:00:11]} Bb8 {[%emt 0:03:24]} 27. Nd2 {[%emt 0:00:24]} Rc8 {[%emt 0:00:42]} 28. Nf3 {[%emt 0:00:28]} Nc6 {[%emt 0:00:14]} 29. Bc1 {[%emt 0:02:16]} Bc7 {[%emt 0:04:39]} 30. Ra2 {[%emt 0:03:01]} Re8 {[%emt 0:01:21]} 31. Qd1 {[%emt 0:01:00]} Rac8 {[%emt 0:02:14]} 32. Qd3 {[%emt 0:02:04]} Qb8 {[%emt 0:00:54]} 33. Ng5 {[%emt 0:01:35]} Bd8 {[%emt 0:04:57]} 34. Qxd5 {[%emt 0:05:13]} Bf6 {[%emt 0:00:27]} 35. Qf3 {[%emt 0:00:20]} Rcd8 {[%emt 0:06:04]} 36. Bf4 {[%emt 0:04:49]} Qc8 {[%emt 0:00:29]} 37. Re1 {[%emt 0:01:09]} Bxg5 {[%emt 0:03:46]} 38. Bxg5 {[%emt 0:00:04]} Rd5 {[%emt 0:00:13]} 39. Bf4 {[%emt 0:00:17]} Qd7 {[%emt 0:01:34]} 40. Bd6 {[%emt 0:00:24]} Ne7 {[%emt 0:02:42]} 41. g4 {[%emt 0:31:59]} Nc8 {[%emt 0:31:23]} 42. Bg3 {[%emt 0:02:54]} Rd8 {[%emt 0:01:30]} 43. Qe4 {[%emt 0:04:04]} Rd3 {[%emt 0:03:41]} 44. Rc2 {[%emt 0:01:19]} Qd5 {[%emt 0:01:37]} 45. c4 {[%emt 0:01:56]} Qd4 {[%emt 0:03:37]} 46. Qxd4 {[%emt 0:00:55]} R8xd4 {[%emt 0:00:00]} 47. cxb5 {[%emt 0:00:00]} axb5 {[%emt 0:00:00]} 48. Rb1 {[%emt 0:00:00]} f6 {[%emt 0:00:00]} 49. c6 {[%emt 0:00:00]} Kf7 {[%emt 0:00:00]} 50. Rc5 {[%emt 0:00:00]} Rd5 {[%emt 0:00:00]} 51. Bb8 {[%emt 0:00:00]} Rxh3 {[%emt 0:00:00]} 52. Bg3 {[%emt 0:00:00]} Rh8 {[%emt 0:00:00]} 53. Rbc1 {[%emt 0:00:00]} Rhd8 {[%emt 0:00:00]} 54. Bc7 {[%emt 0:00:00]} Rd1+ {[%emt 0:00:00]} 55. Rxd1 {[%emt 0:00:00]} Rxd1+ {[%emt 0:00:00]} 56. Kg2 {[%emt 0:00:00]} Rd5 {[%emt 0:00:00]} 57. Bb6 {[%emt 0:00:00]} Ke7 {[%emt 0:00:00]} 58. Rc2 {[%emt 0:00:00]} e5 {[%emt 0:00:00]} 59. Bc5+ {[%emt 0:00:00]} Kd8 {[%emt 0:00:00]} 60. a6 {[%emt 0:00:00]} Rd3 {[%emt 0:00:00]} 61. Ra2 {[%emt 0:00:00]} 1-0

[Event "Int SVK-ch Open 2020"]
[Site "Drienica"]
[Date "2020.08.07"]
[Round "1.8"]
[White "Panko, Eduard"]
[Black "Sedlak, Mikulas"]
[Result "1-0"]
[ECO "A02"]
[WhiteElo "1958"]
[BlackElo "1573"]
[Annotator "ChessBase"]
[PlyCount "87"]
[EventDate "2020.08.07"]
[EventType "swiss"]
[EventCountry "SVK"]
[SourceTitle "playchess.com"]
[Source "ChessBase"]
[SourceQuality "1"]
[TimeControl "40/5400+30:1800+30"]

1. f4 {[%emt 0:00:00]} e5 {[%emt 0:03:09]} 2. d3 {[%emt 0:00:06]} Nc6 {[%emt 0:00:44]} 3. Nf3 {[%emt 0:00:23]} d6 {[%emt 0:00:42]} 4. Nc3 {[%emt 0:01:03]} Bg4 {[%emt 0:01:05]} 5. e4 {[%emt 0:01:49]} Nd4 {[%emt 0:01:31]} 6. Be2 {[%emt 0:00:37]} Nxe2 {[%emt 0:01:37]} 7. Qxe2 {[%emt 0:00:16]} Qd7 {[%emt 0:00:52]} 8. fxe5 {[%emt 0:00:59]} Bxf3 {[%emt 0:00:50]} 9. Qxf3 {[%emt 0:01:09]} dxe5 {[%emt 0:00:14]} 10. Be3 {[%emt 0:01:53]} Bb4 {[%emt 0:01:54]} 11. O-O {[%emt 0:00:33]} a6 {[%emt 0:02:21]} 12. a3 {[%emt 0:03:11]} Bd6 {[%emt 0:00:43]} 13. Nd5 {[%emt 0:01:58]} f6 {[%emt 0:01:16]} 14. c4 {[%emt 0:01:47]} Ne7 {[%emt 0:02:31]} 15. Qh5+ {[%emt 0:00:36]} Ng6 {[%emt 0:00:21]} 16. Rxf6 {[%emt 0:01:31]} O-O-O {[%emt 0:01:11]} 17. Rf2 {[%emt 0:01:30]} Rdf8 {[%emt 0:03:31]} 18. Rxf8+ {[%emt 0:02:54]} Bxf8 {[%emt 0:00:23]} 19. b4 {[%emt 0:01:06]} Kb8 {[%emt 0:00:41]} 20. Qe2 {[%emt 0:01:22]} Ne7 {[%emt 0:01:53]} 21. Rc1 {[%emt 0:02:15]} Nc6 {[%emt 0:02:11]} 22. b5 {[%emt 0:03:02]} Nd4 {[%emt 0:00:24]} 23. Bxd4 {[%emt 0:00:18]} exd4 {[%emt 0:00:18]} 24. bxa6 {[%emt 0:00:16]} b6 {[%emt 0:01:28]} 25. Qb2 {[%emt 0:03:33]} Ka7 {[%emt 0:02:53]} 26. Qb5 {[%emt 0:02:52]} Qxb5 {[%emt 0:01:34]} 27. cxb5 {[%emt 0:00:02]} Bc5 {[%emt 0:01:19]} 28. Nxc7 {[%emt 0:02:10]} Bxa3 {[%emt 0:02:39]} 29. Rf1 {[%emt 0:00:09]} Rc8 30. Rf7 {[%emt 0:01:44]} Kb8 {[%emt 0:02:05]} 31. Rxg7 {[%emt 0:00:54]} Rxc7 {[%emt 0:00:31]} 32. Rxc7 {[%emt 0:02:35]} Kxc7 {[%emt 0:00:15]} 33. Kf2 {[%emt 0:00:37]} Bd6 {[%emt 0:00:45]} 34. h4 {[%emt 0:00:48]} Kc8 {[%emt 0:00:23]} 35. Kf3 {[%emt 0:00:33]} h5 {[%emt 0:01:19]} 36. g4 {[%emt 0:00:08]} hxg4+ {[%emt 0:00:22]} 37. Kxg4 {[%emt 0:00:06]} Bb8 {[%emt 0:00:32]} 38. Kf5 {[%emt 0:00:24]} Kd7 {[%emt 0:00:01]} 39. e5 {[%emt 0:00:34]} Ke7 {[%emt 0:00:30]} 40. h5 {[%emt 0:00:41]} Kf7 {[%emt 0:00:48]} 41. h6 {[%emt 0:30:16]} Kf8 {[%emt 0:30:46]} 42. Kg6 {[%emt 0:00:41]} Ke7 {[%emt 0:01:11]} 43. h7 {[%emt 0:00:10]} Bxe5 {[%emt 0:00:10]} 44. a7 {[%emt 0:00:07]} 1-0

[Event "Int SVK-ch Open 2020"]
[Site "Drienica"]
[Date "2020.08.07"]
[Round "1.9"]
[White "Banoci Jaroslav"]
[Black "Kolesar Milan"]
[Result "0-1"]
[ECO "D02"]
[WhiteElo "1833"]
[BlackElo "2186"]
[Annotator "ChessBase"]
[PlyCount "58"]
[EventDate "2020.08.07"]
[EventType "swiss"]
[EventCountry "SVK"]
[SourceTitle "playchess.com"]
[Source "ChessBase"]
[SourceQuality "1"]
[TimeControl "40/5400+30:1800+30"]

1. d4 {[%emt 0:03:13]} d5 {[%emt 0:00:00]} 2. Nf3 {[%emt 0:00:10]} Nf6 {[%emt 0:00:00]} 3. Bf4 {[%emt 0:00:13]} c5 {[%emt 0:00:44]} 4. e3 {[%emt 0:00:46]} Qb6 {[%emt 0:00:17]} 5. Qc1 {[%emt 0:01:54]} Nc6 {[%emt 0:00:17]} 6. c3 {[%emt 0:00:37]} Bf5 {[%emt 0:00:23]} 7. Be2 {[%emt 0:02:52]} e6 {[%emt 0:00:28]} 8. Nbd2 {[%emt 0:01:15]} Be7 {[%emt 0:01:22]} 9. h3 {[%emt 0:00:35]} h6 {[%emt 0:00:51]} 10. O-O {[%emt 0:01:07]} O-O {[%emt 0:00:15]} 11. Rd1 {[%emt 0:02:04]} Rfc8 {[%emt 0:02:22]} 12. Nf1 {[%emt 0:02:11]} a6 {[%emt 0:06:59]} 13. g4 {[%emt 0:07:08]} Bg6 {[%emt 0:02:30]} 14. Ng3 {[%emt 0:01:44]} Qd8 {[%emt 0:04:33]} 15. Bd3 {[%emt 0:03:22]} Bxd3 {[%emt 0:01:15]} 16. Rxd3 {[%emt 0:00:32]} Ne4 {[%emt 0:01:55]} 17. Ne2 {[%emt 0:15:31]} f5 {[%emt 0:09:24]} 18. Ne5 {[%emt 0:10:00]} Nxe5 {[%emt 0:07:22]} 19. Bxe5 {[%emt 0:01:36]} Bh4 {[%emt 0:00:47]} 20. f3 {[%emt 0:10:30]} Nf2 {[%emt 0:01:28]} 21. Rd2 {[%emt 0:00:59]} Nxh3+ {[%emt 0:00:19]} 22. Kg2 {[%emt 0:00:41]} fxg4 {[%emt 0:01:16]} 23. fxg4 {[%emt 0:00:41]} Nf2 {[%emt 0:03:24]} 24. Nf4 {[%emt 0:06:19]} Nxg4 {[%emt 0:06:06]} 25. Bxg7 {[%emt 0:12:19]} Qg5 {[%emt 0:09:05]} 26. Nxe6 {[%emt 0:01:22]} Nxe3+ {[%emt 0:01:33]} 27. Kh1 {[%emt 0:05:12]} Qg4 {[%emt 0:03:18]} 28. Bxh6 {[%emt 0:03:51]} Qf3+ {[%emt 0:04:54]} 29. Kg1 {[%emt 0:01:25]} Kf7 {[%emt 0:06:19]} 0-1